[Event "Titled Tuesday Blitz September 27 Late 2022"]
[White "Sadilek, Peter"]
[Black "Salman, Pavel"]
[WhiteFideId "1616439"]
[BlackFideId "24153753"]
[WhiteElo "2145"]
[BlackElo "2039"]
[Result "0-1"]
[Round "11"]
[TimeControl "180+1"]
[Date "2022.09.28"]
[WhiteClock "0:00:06"]
[BlackClock "0:00:09"]

1. c4 {[%clk 0:03:00]}  Nf6 {[%clk 0:02:55]} 2. g3 {[%clk 0:02:59]}  c5 {[%clk 0:02:56]} 3. Bg2 {[%clk 0:02:59]}  e6 {[%clk 0:02:56]} 4. Nf3 {[%clk 0:02:57]}  b6 {[%clk 0:02:56]} 5. Ne5 {[%clk 0:02:53]}  d5 {[%clk 0:02:56]} 6. Nc3 {[%clk 0:02:48]}  Bb7 {[%clk 0:02:55]} 7. Qa4+ {[%clk 0:02:47]}  Nbd7 {[%clk 0:02:51]} 8. cxd5 {[%clk 0:02:41]}  exd5 {[%clk 0:02:43]} 9. Nxd7 {[%clk 0:01:34]}  Qxd7 {[%clk 0:02:40]} 10. Qxd7+ {[%clk 0:01:34]}  Kxd7 {[%clk 0:02:39]} 11. d3 {[%clk 0:01:31]}  h6 {[%clk 0:02:34]} 12. O-O {[%clk 0:01:21]}  Bd6 {[%clk 0:02:32]} 13. e4 {[%clk 0:01:19]}  d4 {[%clk 0:02:26]} 14. Nb5 {[%clk 0:01:17]}  Bb8 {[%clk 0:02:13]} 15. a4 {[%clk 0:01:16]}  Re8 {[%clk 0:02:08]} 16. Bd2 {[%clk 0:01:08]}  Ke7 {[%clk 0:02:05]} 17. b4 {[%clk 0:01:02]}  Kf8 {[%clk 0:01:50]} 18. a5 {[%clk 0:00:57]}  Ba6 {[%clk 0:01:45]} 19. axb6 {[%clk 0:00:57]}  axb6 {[%clk 0:01:45]} 20. bxc5 {[%clk 0:00:54]}  bxc5 {[%clk 0:01:43]} 21. Ra5 {[%clk 0:00:48]}  Bxb5 {[%clk 0:01:33]} 22. Rxb5 {[%clk 0:00:47]}  Ra2 {[%clk 0:01:29]} 23. Rd1 {[%clk 0:00:22]}  Nd7 {[%clk 0:01:27]} 24. f4 {[%clk 0:00:16]}  Ba7 {[%clk 0:01:25]} 25. e5 {[%clk 0:00:11]}  Rb8 {[%clk 0:01:16]} 26. Rxb8+ {[%clk 0:00:10]}  Nxb8 {[%clk 0:01:17]} 27. Bd5 {[%clk 0:00:09]}  Rb2 {[%clk 0:01:10]} 28. Ra1 {[%clk 0:00:07]}  Bb6 {[%clk 0:01:03]} 29. Ra8 {[%clk 0:00:06]}  Bc7 {[%clk 0:00:59]} 30. Bc1 {[%clk 0:00:07]}  Rb1 {[%clk 0:00:58]} 31. Kg2 {[%clk 0:00:06]}  Rxc1 {[%clk 0:00:58]} 32. Ra7 {[%clk 0:00:07]}  Bd8 {[%clk 0:00:50]} 33. Rb7 {[%clk 0:00:04]}  Rc2+ {[%clk 0:00:44]} 34. Kf3 {[%clk 0:00:04]}  Na6 {[%clk 0:00:40]} 35. Rxf7+ {[%clk 0:00:03]}  Ke8 {[%clk 0:00:40]} 36. Rxg7 {[%clk 0:00:03]}  Be7 {[%clk 0:00:39]} 37. Bc4 {[%clk 0:00:02]}  Nc7 {[%clk 0:00:32]} 38. f5 {[%clk 0:00:02]}  Rc1 {[%clk 0:00:22]} 39. Ke4 {[%clk 0:00:02]}  Re1+ {[%clk 0:00:21]} 40. Kf4 {[%clk 0:00:02]}  Rf1+ {[%clk 0:00:22]} 41. Ke4 {[%clk 0:00:03]}  Re1+ {[%clk 0:00:13]} 42. Kf4 {[%clk 0:00:03]}  Rf1+ {[%clk 0:00:14]} 43. Kg4 {[%clk 0:00:03]}  h5+ {[%clk 0:00:12]} 44. Kxh5 {[%clk 0:00:03]}  Rxf5+ {[%clk 0:00:13]} 45. Kg6 {[%clk 0:00:03]}  Rg5+ {[%clk 0:00:13]} 46. Kh7 {[%clk 0:00:03]}  Rh5+ {[%clk 0:00:12]} 47. Kg8 {[%clk 0:00:03]}  Rxe5 {[%clk 0:00:12]} 48. Bf7+ {[%clk 0:00:04]}  Kd7 {[%clk 0:00:12]} 49. Bc4 {[%clk 0:00:05]}  Ne6 {[%clk 0:00:09]} 50. h4 {[%clk 0:00:06]}  Nxg7 {[%clk 0:00:09]} 51. Kxg7 {[%clk 0:00:06]}  Re3 {[%clk 0:00:10]} 52. g4 {[%clk 0:00:06]}  Bxh4 {[%clk 0:00:10]} 53. Kg6 {[%clk 0:00:06]}  Be7 {[%clk 0:00:09]} 54. Kf5 {[%clk 0:00:05]}  Kd6 {[%clk 0:00:10]} 55. g5 {[%clk 0:00:05]}  Rg3 {[%clk 0:00:10]} 56. g6 {[%clk 0:00:06]}  Bf8 {[%clk 0:00:10]} 57. Kf6 {[%clk 0:00:06]}  Bh6 {[%clk 0:00:10]} 58. Bf7 {[%clk 0:00:06]}  Kc7 {[%clk 0:00:09]} 59. Ke5 {[%clk 0:00:05]}  Rxd3 {[%clk 0:00:09]} 60. Kd5 {[%clk 0:00:05]}  Rc3 {[%clk 0:00:09]} 61. Be6 {[%clk 0:00:04]}  Bg7 {[%clk 0:00:09]} 62. Bg4 {[%clk 0:00:05]}  Re3 {[%clk 0:00:09]} 63. Bf5 {[%clk 0:00:05]}  Re5+ {[%clk 0:00:09]} 64. Kc4 {[%clk 0:00:06]}  Rxf5 {[%clk 0:00:09]} 0-1


[Site "https://www.chess.com"]

[Event "Titled Tuesday Blitz September 27 Late 2022"]
[White "Salinas Herrera, Pablo"]
[Black "Rosen, Eric"]
[WhiteFideId "3407128"]
[BlackFideId "2032562"]
[WhiteElo "2550"]
[BlackElo "2362"]
[Result "1-0"]
[Round "11"]
[TimeControl "180+1"]
[Date "2022.09.28"]
[WhiteClock "0:00:44"]
[BlackClock "0:00:01"]

1. e4 {[%clk 0:03:00]}  e5 {[%clk 0:02:58]} 2. Nf3 {[%clk 0:03:00]}  Nf6 {[%clk 0:02:58]} 3. Nxe5 {[%clk 0:03:00]}  Nc6 {[%clk 0:02:59]} 4. Nxc6 {[%clk 0:03:00]}  dxc6 {[%clk 0:03:00]} 5. d3 {[%clk 0:03:00]}  Bc5 {[%clk 0:03:00]} 6. Be2 {[%clk 0:03:01]}  h5 {[%clk 0:03:00]} 7. Be3 {[%clk 0:03:00]}  Bxe3 {[%clk 0:03:00]} 8. fxe3 {[%clk 0:03:00]}  Ng4 {[%clk 0:03:01]} 9. Bxg4 {[%clk 0:03:00]}  hxg4 {[%clk 0:03:01]} 10. g3 {[%clk 0:02:51]}  Qd6 {[%clk 0:03:00]} 11. Nd2 {[%clk 0:02:18]}  Be6 {[%clk 0:02:57]} 12. a3 {[%clk 0:02:14]}  O-O-O {[%clk 0:02:53]} 13. Qe2 {[%clk 0:02:14]}  Rh3 {[%clk 0:02:49]} 14. Rf1 {[%clk 0:02:13]}  Rdh8 {[%clk 0:02:41]} 15. Rf2 {[%clk 0:02:13]}  Qe5 {[%clk 0:02:42]} 16. O-O-O {[%clk 0:02:11]}  Qh5 {[%clk 0:02:40]} 17. Nf1 {[%clk 0:02:11]}  f6 {[%clk 0:02:26]} 18. Qd2 {[%clk 0:02:10]}  b6 {[%clk 0:02:21]} 19. Qc3 {[%clk 0:02:10]}  Kb7 {[%clk 0:02:19]} 20. b3 {[%clk 0:02:08]}  a5 {[%clk 0:02:18]} 21. a4 {[%clk 0:02:08]}  Qg6 {[%clk 0:01:54]} 22. Kb2 {[%clk 0:02:08]}  R3h5 {[%clk 0:01:52]} 23. Rf4 {[%clk 0:02:05]}  Rc5 {[%clk 0:01:49]} 24. Qd2 {[%clk 0:02:05]}  Rd8 {[%clk 0:01:42]} 25. d4 {[%clk 0:02:04]}  Rh5 {[%clk 0:01:42]} 26. Qc3 {[%clk 0:01:58]}  Qh6 {[%clk 0:01:37]} 27. Rd2 {[%clk 0:01:49]}  Bc8 {[%clk 0:01:35]} 28. Qd3 {[%clk 0:01:41]}  Qh7 {[%clk 0:01:28]} 29. c4 {[%clk 0:01:40]}  Re8 {[%clk 0:01:24]} 30. Qc2 {[%clk 0:01:36]}  Rh6 {[%clk 0:01:24]} 31. Rdf2 {[%clk 0:01:35]}  Re6 {[%clk 0:01:13]} 32. d5 {[%clk 0:01:34]}  Re5 {[%clk 0:01:13]} 33. Ka2 {[%clk 0:01:22]}  Qg8 {[%clk 0:00:59]} 34. Qd3 {[%clk 0:01:08]}  Qf8 {[%clk 0:00:39]} 35. Qd4 {[%clk 0:01:06]}  c5 {[%clk 0:00:29]} 36. Qxe5 {[%clk 0:01:05]}  Qd8 {[%clk 0:00:12]} 37. Qc3 {[%clk 0:01:04]}  Rh5 {[%clk 0:00:10]} 38. Nd2 {[%clk 0:00:54]}  Qh8 {[%clk 0:00:08]} 39. Nf1 {[%clk 0:00:49]}  Qd8 {[%clk 0:00:07]} 40. Qb2 {[%clk 0:00:49]}  Re5 {[%clk 0:00:05]} 41. Qe2 {[%clk 0:00:49]}  Qd7 {[%clk 0:00:02]} 42. Nd2 {[%clk 0:00:49]}  c6 {[%clk 0:00:02]} 43. Rf5 {[%clk 0:00:49]}  Re8 {[%clk 0:00:02]} 44. e5 {[%clk 0:00:49]}  cxd5 {[%clk 0:00:02]} 45. exf6 {[%clk 0:00:47]}  gxf6 {[%clk 0:00:02]} 46. Rxd5 {[%clk 0:00:47]}  Re7 {[%clk 0:00:03]} 47. Rxd7+ {[%clk 0:00:46]}  Bxd7 {[%clk 0:00:03]} 48. Qd3 {[%clk 0:00:46]}  b5 {[%clk 0:00:02]} 49. Qd6 {[%clk 0:00:45]}  Rh7 {[%clk 0:00:02]} 50. Rxf6 {[%clk 0:00:45]}  bxa4 {[%clk 0:00:01]} 51. bxa4 {[%clk 0:00:44]}  Bxa4 {[%clk 0:00:01]} 52. Qb6+ {[%clk 0:00:44]}  Kc8 {[%clk 0:00:01]} 53. Rf8+ {[%clk 0:00:43]}  Kd7 {[%clk 0:00:01]} 54. Rd8+ {[%clk 0:00:44]} 1-0


[Site "https://www.chess.com"]

[Event "Titled Tuesday Blitz September 27 Late 2022"]
[White "Sernecki, Franciszek"]
[Black "Bispo, Leonardo"]
[WhiteFideId "1169297"]
[BlackFideId "2107899"]
[WhiteElo "2168"]
[BlackElo "2253"]
[Result "1/2-1/2"]
[Round "11"]
[TimeControl "180+1"]
[Date "2022.09.28"]
[WhiteClock "0:00:08"]
[BlackClock "0:00:36"]

1. c4 {[%clk 0:02:57]}  Nf6 {[%clk 0:03:00]} 2. Nc3 {[%clk 0:02:57]}  g6 {[%clk 0:02:59]} 3. e4 {[%clk 0:02:57]}  Bg7 {[%clk 0:02:59]} 4. e5 {[%clk 0:02:57]}  Ng8 {[%clk 0:02:59]} 5. d4 {[%clk 0:02:58]}  d6 {[%clk 0:03:00]} 6. exd6 {[%clk 0:02:58]}  cxd6 {[%clk 0:03:00]} 7. Nf3 {[%clk 0:02:58]}  Nf6 {[%clk 0:03:01]} 8. Bd3 {[%clk 0:02:57]}  O-O {[%clk 0:03:01]} 9. O-O {[%clk 0:02:58]}  d5 {[%clk 0:03:01]} 10. c5 {[%clk 0:02:56]}  b6 {[%clk 0:03:01]} 11. b4 {[%clk 0:02:55]}  a5 {[%clk 0:03:01]} 12. b5 {[%clk 0:02:54]}  bxc5 {[%clk 0:03:02]} 13. dxc5 {[%clk 0:02:55]}  Ne4 {[%clk 0:03:02]} 14. Bxe4 {[%clk 0:02:53]}  Bxc3 {[%clk 0:03:02]} 15. Bxd5 {[%clk 0:02:53]}  Ra7 {[%clk 0:02:56]} 16. Bf4 {[%clk 0:02:30]}  Bxa1 {[%clk 0:02:51]} 17. c6 {[%clk 0:02:24]}  Bg7 {[%clk 0:02:41]} 18. Bxb8 {[%clk 0:02:20]}  Qb6 {[%clk 0:02:31]} 19. Bxa7 {[%clk 0:02:20]}  Qxa7 {[%clk 0:02:32]} 20. Qb3 {[%clk 0:02:20]}  Qb6 {[%clk 0:02:30]} 21. a4 {[%clk 0:02:19]}  Bg4 {[%clk 0:02:27]} 22. Nd2 {[%clk 0:02:17]}  e6 {[%clk 0:02:24]} 23. Nc4 {[%clk 0:02:15]}  Qc5 {[%clk 0:02:22]} 24. Be4 {[%clk 0:02:12]}  Be2 {[%clk 0:02:16]} 25. Rc1 {[%clk 0:02:10]}  Bd4 {[%clk 0:02:07]} 26. Qc2 {[%clk 0:02:01]}  Bxf2+ {[%clk 0:02:04]} 27. Kh1 {[%clk 0:02:01]}  Bxc4 {[%clk 0:02:01]} 28. Qxc4 {[%clk 0:02:00]}  Qxc4 {[%clk 0:01:57]} 29. Rxc4 {[%clk 0:02:01]}  Bb6 {[%clk 0:01:58]} 30. g4 {[%clk 0:01:52]}  Rd8 {[%clk 0:01:56]} 31. c7 {[%clk 0:01:50]}  Rc8 {[%clk 0:01:55]} 32. Rc6 {[%clk 0:01:49]}  Be3 {[%clk 0:01:44]} 33. Kg2 {[%clk 0:01:38]}  Kf8 {[%clk 0:01:43]} 34. Kf3 {[%clk 0:01:37]}  Bg1 {[%clk 0:01:44]} 35. b6 {[%clk 0:01:28]}  Bxb6 {[%clk 0:01:43]} 36. Rxb6 {[%clk 0:01:29]}  Rxc7 {[%clk 0:01:44]} 37. Rb5 {[%clk 0:01:29]}  Rc3+ {[%clk 0:01:40]} 38. Kf2 {[%clk 0:01:22]}  Rc4 {[%clk 0:01:39]} 39. Kf3 {[%clk 0:01:07]}  Rxa4 {[%clk 0:01:39]} 40. g5 {[%clk 0:01:06]}  Ra1 {[%clk 0:01:29]} 41. Kf4 {[%clk 0:01:02]}  a4 {[%clk 0:01:27]} 42. Rb8+ {[%clk 0:01:00]}  Kg7 {[%clk 0:01:26]} 43. Ra8 {[%clk 0:00:55]}  a3 {[%clk 0:01:26]} 44. Ke5 {[%clk 0:00:55]}  a2 {[%clk 0:01:21]} 45. h4 {[%clk 0:00:54]}  h6 {[%clk 0:01:20]} 46. Ra3 {[%clk 0:00:49]}  hxg5 {[%clk 0:01:16]} 47. hxg5 {[%clk 0:00:50]}  Rg1 {[%clk 0:01:08]} 48. Rxa2 {[%clk 0:00:48]}  Rxg5+ {[%clk 0:01:09]} 49. Kf4 {[%clk 0:00:48]}  Rc5 {[%clk 0:01:08]} 50. Ra7 {[%clk 0:00:41]}  Kf6 {[%clk 0:01:07]} 51. Bd3 {[%clk 0:00:40]}  Rd5 {[%clk 0:01:05]} 52. Be4 {[%clk 0:00:39]}  Rd4 {[%clk 0:01:04]} 53. Ke3 {[%clk 0:00:39]}  Rc4 {[%clk 0:01:05]} 54. Bd3 {[%clk 0:00:39]}  Rb4 {[%clk 0:01:04]} 55. Bc2 {[%clk 0:00:38]}  g5 {[%clk 0:01:00]} 56. Kf3 {[%clk 0:00:34]}  Rf4+ {[%clk 0:00:53]} 57. Ke3 {[%clk 0:00:30]}  Kg7 {[%clk 0:00:49]} 58. Bb3 {[%clk 0:00:27]}  Kh6 {[%clk 0:00:49]} 59. Bc2 {[%clk 0:00:25]}  e5 {[%clk 0:00:39]} 60. Ra6+ {[%clk 0:00:18]}  f6 {[%clk 0:00:39]} 61. Ra7 {[%clk 0:00:18]}  g4 {[%clk 0:00:40]} 62. Rh7+ {[%clk 0:00:17]}  Kg5 {[%clk 0:00:40]} 63. Rg7+ {[%clk 0:00:17]}  Kh4 {[%clk 0:00:41]} 64. Be4 {[%clk 0:00:15]}  Kg3 {[%clk 0:00:37]} 65. Ra7 {[%clk 0:00:13]}  f5 {[%clk 0:00:37]} 66. Bd5 {[%clk 0:00:14]}  e4 {[%clk 0:00:37]} 67. Ra1 {[%clk 0:00:12]}  Rf3+ {[%clk 0:00:37]} 68. Ke2 {[%clk 0:00:13]}  Rd3 {[%clk 0:00:35]} 69. Be6 {[%clk 0:00:12]}  Kf4 {[%clk 0:00:31]} 70. Rf1+ {[%clk 0:00:11]}  Rf3 {[%clk 0:00:31]} 71. Rxf3+ {[%clk 0:00:06]}  exf3+ {[%clk 0:00:32]} 72. Kf1 {[%clk 0:00:06]}  Kg3 {[%clk 0:00:32]} 73. Bxf5 {[%clk 0:00:04]}  Kf4 {[%clk 0:00:33]} 74. Bxg4 {[%clk 0:00:04]}  Kxg4 {[%clk 0:00:33]} 75. Kf2 {[%clk 0:00:05]}  Kf4 {[%clk 0:00:34]} 76. Kf1 {[%clk 0:00:06]}  Ke3 {[%clk 0:00:34]} 77. Ke1 {[%clk 0:00:06]}  Ke4 {[%clk 0:00:35]} 78. Kf2 {[%clk 0:00:07]}  Kf4 {[%clk 0:00:36]} 79. Kf1 {[%clk 0:00:08]}  Ke4 {[%clk 0:00:35]} 80. Kf2 {[%clk 0:00:08]}  Kf4 {[%clk 0:00:36]} 1/2-1/2


[Site "https://www.chess.com"]

[Event "Titled Tuesday Blitz September 27 Late 2022"]
[White "Spitzl, Vinzent"]
[Black "Alfaro, William"]
[WhiteFideId "12901253"]
[BlackFideId "6100457"]
[WhiteElo "2160"]
[BlackElo "2096"]
[Result "1-0"]
[Round "11"]
[TimeControl "180+1"]
[Date "2022.09.28"]
[WhiteClock "0:00:15"]
[BlackClock "0:00:15"]

1. Nf3 {[%clk 0:03:00]}  Nf6 {[%clk 0:02:56]} 2. g3 {[%clk 0:03:00]}  g6 {[%clk 0:02:56]} 3. Bg2 {[%clk 0:03:00]}  Bg7 {[%clk 0:02:56]} 4. O-O {[%clk 0:03:01]}  O-O {[%clk 0:02:57]} 5. d4 {[%clk 0:03:02]}  c5 {[%clk 0:02:56]} 6. c3 {[%clk 0:03:01]}  b6 {[%clk 0:02:52]} 7. Bf4 {[%clk 0:02:59]}  Bb7 {[%clk 0:02:51]} 8. Nbd2 {[%clk 0:02:59]}  d6 {[%clk 0:02:50]} 9. Re1 {[%clk 0:02:59]}  Nc6 {[%clk 0:02:49]} 10. e4 {[%clk 0:02:58]}  Nh5 {[%clk 0:02:28]} 11. Be3 {[%clk 0:02:52]}  e5 {[%clk 0:02:24]} 12. dxe5 {[%clk 0:02:47]}  dxe5 {[%clk 0:02:18]} 13. Nc4 {[%clk 0:02:47]}  Qe7 {[%clk 0:02:08]} 14. Qd6 {[%clk 0:02:31]}  Rfe8 {[%clk 0:01:44]} 15. Rad1 {[%clk 0:02:25]}  Rad8 {[%clk 0:01:38]} 16. Qxe7 {[%clk 0:02:25]}  Rxe7 {[%clk 0:01:39]} 17. Rxd8+ {[%clk 0:02:17]}  Nxd8 {[%clk 0:01:39]} 18. Rd1 {[%clk 0:02:18]}  Nc6 {[%clk 0:01:30]} 19. Bh3 {[%clk 0:02:02]}  Bf8 {[%clk 0:01:20]} 20. a4 {[%clk 0:01:43]}  f6 {[%clk 0:01:15]} 21. Nd6 {[%clk 0:01:40]}  Ba6 {[%clk 0:01:11]} 22. Nb5 {[%clk 0:01:40]}  Ng7 {[%clk 0:01:08]} 23. Nd2 {[%clk 0:01:36]}  f5 {[%clk 0:00:59]} 24. Nc4 {[%clk 0:01:36]}  f4 {[%clk 0:00:56]} 25. Bc1 {[%clk 0:01:26]}  Kf7 {[%clk 0:00:39]} 26. f3 {[%clk 0:01:15]}  g5 {[%clk 0:00:33]} 27. b3 {[%clk 0:00:59]}  Bb7 {[%clk 0:00:13]} 28. Nbd6+ {[%clk 0:00:54]}  Kf6 {[%clk 0:00:09]} 29. Nxb7 {[%clk 0:00:50]}  Rxb7 {[%clk 0:00:10]} 30. Bd7 {[%clk 0:00:49]}  Nd8 {[%clk 0:00:07]} 31. Kg2 {[%clk 0:00:40]}  Nde6 {[%clk 0:00:07]} 32. Bc6 {[%clk 0:00:39]}  Rc7 {[%clk 0:00:07]} 33. Bd5 {[%clk 0:00:38]}  Rd7 {[%clk 0:00:07]} 34. Kf2 {[%clk 0:00:35]}  Be7 {[%clk 0:00:07]} 35. Ke2 {[%clk 0:00:35]}  Bd8 {[%clk 0:00:08]} 36. Bb2 {[%clk 0:00:31]}  Bc7 {[%clk 0:00:07]} 37. b4 {[%clk 0:00:30]}  a6 {[%clk 0:00:04]} 38. a5 {[%clk 0:00:24]}  bxa5 {[%clk 0:00:03]} 39. bxa5 {[%clk 0:00:23]}  h5 {[%clk 0:00:03]} 40. Ba3 {[%clk 0:00:23]}  Bd6 {[%clk 0:00:02]} 41. Rb1 {[%clk 0:00:22]}  Bc7 {[%clk 0:00:02]} 42. Rb7 {[%clk 0:00:21]}  g4 {[%clk 0:00:03]} 43. Bc6 {[%clk 0:00:17]}  Rf7 {[%clk 0:00:01]} 44. Ra7 {[%clk 0:00:16]}  gxf3+ {[%clk 0:00:02]} 45. Kxf3 {[%clk 0:00:15]}  fxg3 {[%clk 0:00:02]} 46. Kxg3 {[%clk 0:00:14]}  Ng5 {[%clk 0:00:03]} 47. Rxa6 {[%clk 0:00:14]}  Kg6 {[%clk 0:00:04]} 48. Be8+ {[%clk 0:00:13]}  N7e6 {[%clk 0:00:03]} 49. Bxf7+ {[%clk 0:00:14]}  Kxf7 {[%clk 0:00:04]} 50. Ra7 {[%clk 0:00:12]}  Nf4 {[%clk 0:00:05]} 51. Rxc7+ {[%clk 0:00:09]}  Kf6 {[%clk 0:00:04]} 52. Bxc5 {[%clk 0:00:09]}  Nxe4+ {[%clk 0:00:04]} 53. Kf3 {[%clk 0:00:10]}  Kf5 {[%clk 0:00:04]} 54. Ke3 {[%clk 0:00:09]}  h4 {[%clk 0:00:05]} 55. Rf7+ {[%clk 0:00:08]}  Ke6 {[%clk 0:00:05]} 56. Rxf4 {[%clk 0:00:08]}  exf4+ {[%clk 0:00:05]} 57. Kxe4 {[%clk 0:00:09]}  f3 {[%clk 0:00:05]} 58. Kxf3 {[%clk 0:00:09]}  Kd5 {[%clk 0:00:06]} 59. a6 {[%clk 0:00:10]}  Kxc4 {[%clk 0:00:07]} 60. a7 {[%clk 0:00:10]}  Kxc5 {[%clk 0:00:07]} 61. a8=Q {[%clk 0:00:11]}  Kc4 {[%clk 0:00:08]} 62. Qh8 {[%clk 0:00:11]}  Kd3 {[%clk 0:00:09]} 63. Qxh4 {[%clk 0:00:11]}  Kc2 {[%clk 0:00:10]} 64. Qg4 {[%clk 0:00:12]}  Kb3 {[%clk 0:00:11]} 65. h4 {[%clk 0:00:13]}  Kc2 {[%clk 0:00:12]} 66. h5 {[%clk 0:00:13]}  Kb3 {[%clk 0:00:13]} 67. h6 {[%clk 0:00:14]}  Kc2 {[%clk 0:00:14]} 68. h7 {[%clk 0:00:14]}  Kb3 {[%clk 0:00:15]} 69. h8=Q {[%clk 0:00:15]} 1-0


[Site "https://www.chess.com"]

[Event "Titled Tuesday Blitz September 27 Late 2022"]
[White "Thomforde-Toates, Noah"]
[Black "Amburgy, Ryan"]
[WhiteFideId "30951992"]
[BlackFideId "30924820"]
[WhiteElo "2597"]
[BlackElo "2066"]
[Result "1/2-1/2"]
[Round "11"]
[TimeControl "180+1"]
[Date "2022.09.28"]
[WhiteClock "0:00:17"]
[BlackClock "0:00:19"]

1. c4 {[%clk 0:03:00]}  e5 {[%clk 0:02:59]} 2. Nc3 {[%clk 0:03:00]}  Nf6 {[%clk 0:03:00]} 3. g3 {[%clk 0:03:00]}  d5 {[%clk 0:03:00]} 4. cxd5 {[%clk 0:03:00]}  Nxd5 {[%clk 0:03:01]} 5. Bg2 {[%clk 0:03:01]}  Nb6 {[%clk 0:03:01]} 6. Nf3 {[%clk 0:03:01]}  Nc6 {[%clk 0:03:02]} 7. O-O {[%clk 0:03:01]}  Be7 {[%clk 0:03:03]} 8. d4 {[%clk 0:02:56]}  exd4 {[%clk 0:03:01]} 9. Nb5 {[%clk 0:02:55]}  Bf6 {[%clk 0:02:59]} 10. Bf4 {[%clk 0:02:53]}  Nd5 {[%clk 0:02:58]} 11. Nfxd4 {[%clk 0:02:34]}  Nxd4 {[%clk 0:02:56]} 12. Bxd5 {[%clk 0:01:50]}  Nxb5 {[%clk 0:02:56]} 13. Bxf7+ {[%clk 0:01:44]}  Kxf7 {[%clk 0:02:56]} 14. Qb3+ {[%clk 0:01:44]}  Be6 {[%clk 0:02:27]} 15. Qxb5 {[%clk 0:01:43]}  Qd5 {[%clk 0:02:28]} 16. Qa4 {[%clk 0:01:33]}  Bh3 {[%clk 0:02:21]} 17. e4 {[%clk 0:01:32]}  Qd4 {[%clk 0:02:11]} 18. Qb3+ {[%clk 0:01:29]}  Kg6 {[%clk 0:02:09]} 19. Rfe1 {[%clk 0:01:25]}  Rae8 {[%clk 0:01:40]} 20. Qf3 {[%clk 0:01:18]}  Qd7 {[%clk 0:01:33]} 21. e5 {[%clk 0:01:17]}  Bd8 {[%clk 0:01:09]} 22. Rad1 {[%clk 0:01:13]}  Qf5 {[%clk 0:01:09]} 23. Qxb7 {[%clk 0:01:12]}  Rhf8 {[%clk 0:01:03]} 24. Qxa7 {[%clk 0:01:07]}  h5 {[%clk 0:00:56]} 25. Qe3 {[%clk 0:00:57]}  Qe6 {[%clk 0:00:45]} 26. a4 {[%clk 0:00:54]}  h4 {[%clk 0:00:43]} 27. a5 {[%clk 0:00:51]}  Kh7 {[%clk 0:00:41]} 28. b4 {[%clk 0:00:46]}  Rg8 {[%clk 0:00:35]} 29. Qe4+ {[%clk 0:00:38]}  Bf5 {[%clk 0:00:35]} 30. Qd5 {[%clk 0:00:35]}  Qg6 {[%clk 0:00:33]} 31. b5 {[%clk 0:00:31]}  Bg5 {[%clk 0:00:27]} 32. Bxg5 {[%clk 0:00:25]}  Qxg5 {[%clk 0:00:28]} 33. e6 {[%clk 0:00:24]}  h3 {[%clk 0:00:22]} 34. e7 {[%clk 0:00:20]}  g6 {[%clk 0:00:21]} 35. Rd4 {[%clk 0:00:19]}  Rxe7 {[%clk 0:00:18]} 36. Rh4+ {[%clk 0:00:19]}  Kg7 {[%clk 0:00:18]} 37. Qd4+ {[%clk 0:00:19]}  Kf8 {[%clk 0:00:16]} 38. Qc5 {[%clk 0:00:18]}  Qf6 {[%clk 0:00:12]} 39. Rh7 {[%clk 0:00:15]}  Rg7 {[%clk 0:00:12]} 40. Rxe7 {[%clk 0:00:12]}  Rxe7 {[%clk 0:00:12]} 41. Qa3 {[%clk 0:00:06]}  Ke8 {[%clk 0:00:11]} 42. Rxe7+ {[%clk 0:00:05]}  Qxe7 {[%clk 0:00:12]} 43. Qxe7+ {[%clk 0:00:04]}  Kxe7 {[%clk 0:00:13]} 44. b6 {[%clk 0:00:04]}  cxb6 {[%clk 0:00:13]} 45. axb6 {[%clk 0:00:05]}  Be4 {[%clk 0:00:14]} 46. Kf1 {[%clk 0:00:05]}  Kd6 {[%clk 0:00:14]} 47. Ke1 {[%clk 0:00:06]}  Kc6 {[%clk 0:00:14]} 48. Ke2 {[%clk 0:00:06]}  Kxb6 {[%clk 0:00:15]} 49. f3 {[%clk 0:00:07]}  Bf5 {[%clk 0:00:15]} 50. Ke3 {[%clk 0:00:08]}  Kc6 {[%clk 0:00:15]} 51. Kf4 {[%clk 0:00:09]}  Kd6 {[%clk 0:00:16]} 52. g4 {[%clk 0:00:10]}  Bd3 {[%clk 0:00:16]} 53. Kg3 {[%clk 0:00:10]}  Ke6 {[%clk 0:00:17]} 54. Kxh3 {[%clk 0:00:11]}  Kf6 {[%clk 0:00:17]} 55. Kg3 {[%clk 0:00:12]}  Be2 {[%clk 0:00:17]} 56. h4 {[%clk 0:00:12]}  Bd1 {[%clk 0:00:17]} 57. Kf4 {[%clk 0:00:12]}  Bb3 {[%clk 0:00:14]} 58. h5 {[%clk 0:00:12]}  g5+ {[%clk 0:00:14]} 59. Kg3 {[%clk 0:00:13]}  Be6 {[%clk 0:00:14]} 60. f4 {[%clk 0:00:13]}  gxf4+ {[%clk 0:00:14]} 61. Kxf4 {[%clk 0:00:14]}  Bxg4 {[%clk 0:00:15]} 62. Kxg4 {[%clk 0:00:14]}  Kg7 {[%clk 0:00:16]} 63. Kg5 {[%clk 0:00:15]}  Kh8 {[%clk 0:00:17]} 64. h6 {[%clk 0:00:15]}  Kg8 {[%clk 0:00:18]} 65. Kg6 {[%clk 0:00:16]}  Kh8 {[%clk 0:00:19]} 66. h7 {[%clk 0:00:17]} 1/2-1/2


[Site "https://www.chess.com"]

[Event "Titled Tuesday Blitz September 27 Late 2022"]
[White "Wieczorek, Oskar"]
[Black "Djokic, Mihailo"]
[WhiteFideId "1133950"]
[BlackFideId "976440"]
[WhiteElo "2302"]
[BlackElo "2315"]
[Result "0-1"]
[Round "11"]
[TimeControl "180+1"]
[Date "2022.09.27"]
[WhiteClock "0:00:01"]
[BlackClock "0:00:20"]

1. e4 {[%clk 0:02:52]}  c5 {[%clk 0:02:54]} 2. Nf3 {[%clk 0:02:48]}  e6 {[%clk 0:02:54]} 3. a3 {[%clk 0:02:45]}  d5 {[%clk 0:02:46]} 4. e5 {[%clk 0:02:43]}  Nc6 {[%clk 0:02:44]} 5. b4 {[%clk 0:02:43]}  cxb4 {[%clk 0:02:45]} 6. axb4 {[%clk 0:02:43]}  Bxb4 {[%clk 0:02:46]} 7. c3 {[%clk 0:02:44]}  Be7 {[%clk 0:02:41]} 8. d4 {[%clk 0:02:43]}  Nh6 {[%clk 0:02:42]} 9. Bd3 {[%clk 0:02:42]}  Nf5 {[%clk 0:02:40]} 10. O-O {[%clk 0:02:40]}  h5 {[%clk 0:02:39]} 11. Na3 {[%clk 0:02:31]}  Bd7 {[%clk 0:02:36]} 12. Bxf5 {[%clk 0:02:25]}  exf5 {[%clk 0:02:35]} 13. Nb5 {[%clk 0:02:26]}  Be6 {[%clk 0:02:34]} 14. Ba3 {[%clk 0:02:25]}  O-O {[%clk 0:02:34]} 15. Nd6 {[%clk 0:02:22]}  Na5 {[%clk 0:02:28]} 16. Ne1 {[%clk 0:02:09]}  g6 {[%clk 0:02:25]} 17. Nd3 {[%clk 0:02:07]}  Nc4 {[%clk 0:02:24]} 18. Nxb7 {[%clk 0:02:01]}  Qc7 {[%clk 0:02:19]} 19. Bxe7 {[%clk 0:02:01]}  Qxe7 {[%clk 0:02:19]} 20. Ndc5 {[%clk 0:01:53]}  a5 {[%clk 0:02:15]} 21. Qa4 {[%clk 0:01:19]}  Rfb8 {[%clk 0:02:11]} 22. Rfb1 {[%clk 0:01:19]}  f4 {[%clk 0:02:09]} 23. Nxe6 {[%clk 0:01:04]}  Qxe6 {[%clk 0:01:43]} 24. Nc5 {[%clk 0:00:54]}  Qf5 {[%clk 0:01:43]} 25. Re1 {[%clk 0:00:42]}  f3 {[%clk 0:01:38]} 26. Qd7 {[%clk 0:00:41]}  Qxd7 {[%clk 0:01:15]} 27. Nxd7 {[%clk 0:00:42]}  Rd8 {[%clk 0:01:14]} 28. Nc5 {[%clk 0:00:30]}  fxg2 {[%clk 0:01:12]} 29. e6 {[%clk 0:00:30]}  Re8 {[%clk 0:01:10]} 30. exf7+ {[%clk 0:00:17]}  Kxf7 {[%clk 0:01:11]} 31. Reb1 {[%clk 0:00:17]}  Reb8 {[%clk 0:01:09]} 32. Rxb8 {[%clk 0:00:09]}  Rxb8 {[%clk 0:01:09]} 33. Kxg2 {[%clk 0:00:09]}  Rb2 {[%clk 0:01:00]} 34. Kf3 {[%clk 0:00:09]}  Rc2 {[%clk 0:00:59]} 35. Rb1 {[%clk 0:00:07]}  Rxc3+ {[%clk 0:00:59]} 36. Kf4 {[%clk 0:00:07]}  Rf3+ {[%clk 0:00:54]} 37. Kg5 {[%clk 0:00:06]}  Rf5+ {[%clk 0:00:49]} 38. Kh6 {[%clk 0:00:06]}  Rxf2 {[%clk 0:00:43]} 39. h4 {[%clk 0:00:06]}  Nd6 {[%clk 0:00:40]} 40. Rb6 {[%clk 0:00:04]}  Nf5+ {[%clk 0:00:39]} 41. Kg5 {[%clk 0:00:03]}  Nxh4 {[%clk 0:00:40]} 42. Kxh4 {[%clk 0:00:03]}  Rf4+ {[%clk 0:00:40]} 43. Kg3 {[%clk 0:00:02]}  Rxd4 {[%clk 0:00:39]} 44. Ra6 {[%clk 0:00:03]}  Rg4+ {[%clk 0:00:33]} 45. Kf3 {[%clk 0:00:02]}  Rc4 {[%clk 0:00:32]} 46. Ne6 {[%clk 0:00:01]}  a4 {[%clk 0:00:29]} 47. Nf4 {[%clk 0:00:01]}  Rc3+ {[%clk 0:00:25]} 48. Ke2 {[%clk 0:00:01]}  Rg3 {[%clk 0:00:20]} 0-1


[Site "https://www.chess.com"]